Cogmind - Beta 15 @@@ ROGUE MODE // 2025.07.08 @ 10:31:44 Player: beans Result: Destroyed by NJ-FDX(R) with Subdweller Laser Performance ------------- Evolutions (0) 0 Regions Visited (2) 400 Robots Destroyed (8) 40 Value Destroyed (237) 237 Prototype IDs (0) 0 Alien Tech Used (0) 0 Bonus (0) 0 TOTAL SCORE: 677 Bonus ------- None Cogmind --------- Core Integrity 0/250 Matter 19/300 Energy 99/100 System Corruption 0% Temperature Cool (6) Movement Core (50) Location -10/Subcaves Parts ------- > --- POWER (1) -------- (None) > --- PROPULSION (2) --- (None) > --- UTILITY (2) ------ Signal Interpreter > --- WEAPON (2) ------- (None) > --- INVENTORY (5) ---- (None) Peak State ------------ > --- POWER ------------ Light Ion Engine > --- PROPULSION ------- Light Treads Light Treads > --- UTILITY ---------- Signal Interpreter > --- WEAPON ----------- Grenade Launcher > --- INVENTORY -------- (None) [Rating: 5] Favorites ----------- Power Light Ion Engine Engine Light Ion Engine Propulsion Light Treads Treads Light Treads Utility Signal Interpreter Processor Signal Interpreter Weapon Grenade Launcher Launcher Grenade Launcher Build | -11 -10 -10 ------- Run | Yrd Mat Sub Slots Evolved . | . . . Power . | . . . Propulsion . | . . . Utility . | . . . Weapon . | . . . Parts Attached 5 | 3 2 . Power 1 | 1 . . Engine 1 | 1 . . Core . | . . . Reactor . | . . . Propulsion 2 | 2 . . Treads 2 | 2 . . Leg . | . . . Wheel . | . . . Hover . | . . . Flight . | . . . Utility 1 | . 1 . Device . | . . . Storage . | . . . Processor 1 | . 1 . Hackware . | . . . Protection . | . . . Artifact . | . . . Weapon 1 | . 1 . Energy Gun . | . . . Energy Cannon . | . . . Ballistic Gun . | . . . Ballistic Cannon . | . . . Launcher 1 | . 1 . Special Weapon . | . . . Impact Weapon . | . . . Slashing Weapon . | . . . Piercing Weapon . | . . . Special Melee Weapon . | . . . Unidentified Prototypes . | . . . Parts Lost 4 | . . 4 Power 1 | . . 1 Propulsion 2 | . . 2 Utility . | . . . Weapon 1 | . . 1 Highest Loss Streak 4 | . . 4 To Critical Strikes . | . . . Average Backups . | . . . Power . | . . . Propulsion . | . . . Utility . | . . . Weapon . | . . . Tool/Special . | . . . Unused Backups . | . . . Power . | . . . Propulsion . | . . . Utility . | . . . Weapon . | . . . Tool/Special . | . . . Average Slot Usage (%) 67 | . 66 68 Engine 13 | . 14 12 Treads 27 | . 28 26 Processor 12 | . 10 14 Launcher 13 | . 13 13 Peak Build Rating 5 | 3 5 5 Average Rating 4 | 2 4 4 On Entrance 2 | . 3 5 Naked Turns . | . . . Heaviest Build 6 | 3 6 6 Greatest Support 40 | 40 40 40 Greatest Overweight (x) . | . . . Average Overweight (x) . | . . . Largest Inventory Capacity 5 | 5 5 5 Average Capacity 5 | 5 5 5 Most Carried 2 | 2 1 . Average Carried . | . . . Final Capacity 5 | 5 5 5 Final Carried . | . . . Class Distribution -------------------- 100% | Mutant Dominant Class ---------------- Mutant | -10/Materials Mutant | -10/Subcaves Resources | -11 -10 -10 ----------- Run | Yrd Mat Sub Matter Collected 77 | 42 8 27 Remotely . | . . . Salvage Created 115 | . 46 69 Parts 12 | . 8 4 Haulers Intercepted . | . . . Recyclers Shooed . | . . . Parts Field Recycled . | . . . Retrieved Matter . | . . . Parts Self-Destructed . | . . . Prevented . | . . . Kills | -11 -10 -10 ------- Run | Yrd Mat Sub Combat Hostiles Destroyed 7 | . 3 4 AOE 7 | . 3 4 Classes Destroyed 4 | . 2 2 Watcher 1 | . 1 . Swarmer 3 | . 3 . Grunt 2 | . . 2 Subdweller 2 | . . 2 Best Kill Streak 4 | . 4 3 Combat Bots Only 3 | . 3 3 Max Kills in Single Turn 4 | . 4 1 Gunslinging . | . . . Exploded 3 | . 3 1 Melee . | . . . Uniques/NPCs Destroyed . | . . . Combat | -11 -10 -10 -------- Run | Yrd Mat Sub Hostile Shots Fired 48 | . 5 43 Missed 19 | . 4 15 Hits 29 | . 1 28 Projectile 29 | . 1 28 Damage Taken 664 | . 6 658 Core 251 | . . 251 Absorbed by Shields . | . . . Core Remaining (%) 100 | 100 . . Volleys Fired 13 | . 1 12 Largest 1 | . 1 1 Hottest 30 | . 30 30 Shots Fired 13 | . 1 12 Gun . | . . . Cannon . | . . . Launcher 13 | . 1 12 Special . | . . . Kinetic . | . . . Thermal . | . . . Explosive 13 | . 1 12 Electromagnetic . | . . . Robot Hit Streak 1 | . 1 . Robot Miss Streak 1 | . . 1 Penetration Max . | . . . Secondary Targets . | . . . Shots Hit Robots 1 | . 1 . Core Hits 14 | . 4 10 Critical Kills . | . . . Critical Parts Destroyed . | . . . Critical Strikes . | . . . Melee Attacks . | . . . Impact . | . . . Slashing . | . . . Piercing . | . . . Sneak Attacks . | . . . Combat Hostiles . | . . . Follow-up Attacks . | . . . Damage Inflicted 823 | . 166 657 Guns . | . . . Cannons . | . . . Explosions 817 | . 166 651 Melee . | . . . Ramming 6 | . . 6 Kinetic . | . . . Thermal . | . . . Explosive 817 | . 166 651 Electromagnetic . | . . . Impact . | . . . Slashing . | . . . Piercing . | . . . Highest Corruption . | . . . Average Corruption . | . . . Corruption Purged . | . . . Corruption Blocked . | . . . Overload Shots . | . . . Overflow Damage 1 | . 1 . Projectiles . | . . . Explosions 1 | . 1 . Melee . | . . . Knockbacks . | . . . Impact . | . . . Kinetic . | . . . Secondary . | . . . Self-Inflicted Damage 38 | . . 38 Shots 1 | . . 1 Rammed 1 | . . 1 Targets Rammed 1 | . . 1 Kicked . | . . . Crushed . | . . . Highest Temperature . | . . . Average Temperature . | . . . Received Heat Transfer 162 | . . 162 Siege Activations . | . . . Martial Activations . | . . . Shielding Activations . | . . . Robots Disrupted . | . . . Combat Hostiles . | . . . Robots Corrupted . | . . . Combat Hostiles . | . . . Parts Fried . | . . . Impact Corruptions . | . . . Robots Melted . | . . . Combat Hostiles . | . . . Parts Melted . | . . . Heat Transferred . | . . . Parts Sabotaged . | . . . Parts Stolen . | . . . Parts Stripped . | . . . Power Chain Reactions . | . . . Alert | -11 -10 -10 ------- Run | Yrd Mat Sub Maximum Alert Level . | . . . Low Security (%) 100 | 100 100 . Level 1 . | . . . Level 2 . | . . . Level 3 . | . . . Level 4 . | . . . Level 5 . | . . . High Security . | . . . Max Security . | . . . Peak Influence 122 | . 122 . Initial . | . . . Average 40 | . 49 . Influence Increases 172 | . 122 50 Destroy 0b10 Robot/C 100 | . 60 40 Destroy 0b10 Robot/NC 5 | . 5 . Destroy Leader 22 | . 12 10 Disable Machine 45 | . 45 . Influence Decreases 172 | . 90 82 Entered New Map 16 | . . 16 Time Decay 156 | . 90 66 Squads Dispatched . | . . . Investigation . | . . . Extermination . | . . . Reinforcement . | . . . Assault . | . . . Garrison . | . . . Intercept . | . . . Searches Triggered . | . . . Construction Impeded . | . . . Haulers Reinforced . | . . . Active Scanning Responses . | . . . Cargo Convoy Interrupts . | . . . Stealth | -11 -10 -10 --------- Run | Yrd Mat Sub Distress Signals . | . . . Communications Jammed . | . . . Distress Signals . | . . . Times Spotted 14 | . 4 10 Peak Tracking Total 5 | . 4 5 Tactical Retreats . | . . . Traps | -11 -10 -10 ------- Run | Yrd Mat Sub Traps Triggered 1 | . . 1 Indirectly . | . . . Trap Hack Attempts . | . . . Triggered . | . . . Disarmed . | . . . Reprogrammed . | . . . Reused . | . . . Traps Extracted . | . . . Installed . | . . . Triggered . | . . . Machines | -11 -10 -10 ---------- Run | Yrd Mat Sub Machines Disabled 3 | . 3 . Max in Single Turn 3 | . 3 . Machines Repaired . | . . . Machines Dismantled . | . . . Machines Sabotaged . | . . . Overloaded Fab Kills . | . . . Hacking | -11 -10 -10 --------- Run | Yrd Mat Sub Machines Accessed . | . . . Terminals . | . . . Fabricators . | . . . Repair Stations . | . . . Recycling Units . | . . . Scanalyzers . | . . . Garrison Access . | . . . Total Hacks . | . . . Successful . | . . . Failed . | . . . Catastrophic . | . . . Database Lockouts . | . . . Manual . | . . . Terminals . | . . . Fabricators . | . . . Repair Stations . | . . . Recycling Units . | . . . Scanalyzers . | . . . Garrison Access . | . . . Terminal Hacks . | . . . Fabricator Hacks . | . . . Repair Station Hacks . | . . . Recycling Unit Hacks . | . . . Scanalyzer . | . . . Garrison Access Hacks . | . . . Unauthorized Hacks . | . . . Terminals . | . . . Fabricators . | . . . Repair Stations . | . . . Recycling Units . | . . . Scanalyzers . | . . . Garrison Access . | . . . Data Cores Recovered . | . . . Used . | . . . Hacking Detections . | . . . Full Trace Events . | . . . Feedback Events . | . . . Feedback Blocked . | . . . Robot Schematics Acquired . | . . . Robots Built . | . . . Authchips . | . . . Time . | . . . Total Robot Build Rating . | . . . Part Schematics Acquired . | . . . Parts Built . | . . . Authchips . | . . . Time . | . . . Total Part Build Rating . | . . . Parts Repaired . | . . . Time . | . . . Parts Recycled . | . . . Recycled Matter . | . . . Retrieved Matter . | . . . Retrieved Components . | . . . Parts Scanalyzed . | . . . Part Schematics Acquired . | . . . Parts Damaged . | . . . Bothacking | -11 -10 -10 ------------ Run | Yrd Mat Sub Used RIF Installer . | . . . Robots Hacked . | . . . Non-combat . | . . . Combat . | . . . Robot Hacks Applied . | . . . Relay Couplers Released . | . . . Fabnet Peak Effective % . | . . . Robots Rewired . | . . . Allies Hacked . | . . . Hacks Repelled . | . . . Allies | -11 -10 -10 -------- Run | Yrd Mat Sub Total Allies . | . . . Largest Group . | . . . Highest-Rated Group . | . . . Highest-Rated Ally . | . . . Total Orders . | . . . Ally Attacks . | . . . Total Damage . | . . . Kills . | . . . Allies Corrupted . | . . . Allies Melted . | . . . Intel | -11 -10 -10 ------- Run | Yrd Mat Sub Active Infowar (turns) . | . . . Robot Analysis Total . | . . . Derelict Logs Recovered . | . . . Drone Launches . | . . . Drone Recoveries . | . . . Exploration | -11 -10 -10 ------------- Run | Yrd Mat Sub Turns Passed 871 | 69 287 515 Spaces Moved 478 | 44 112 322 Core 32 | 6 . 26 Treads 446 | 38 112 296 Legs . | . . . Wheels . | . . . Hover . | . . . Flight . | . . . Fastest Speed 50 | 50 160 50 Average Speed 152 | 145 160 151 Slowest Speed 160 | 160 160 160 Overloaded Moves . | . . . Propulsion Burnouts . | . . . Robots Hopped . | . . . Potential Cave-ins . | . . . Cave-ins Triggered . | . . . Exploration Rate (%) 22 | 4 31 32 Regions Visited 2 Branch Regions 1 Pre-discovered Areas . | . . . Known Exits Taken 1 | . 1 . Unknown Exits Taken 1 | 1 . . Scrap Searched . | . . . Spaces Dug . | . . . Terrain Destroyed 57 | . . 57 Melee . | . . . Projectile . | . . . AOE 57 | . . 57 Terrain Rammed . | . . . Walls Destroyed . | . . . Machines Disabled . | . . . Actions | -11 -10 -10 --------- Run | Yrd Mat Sub Total 603 | 49 219 335 Wait 103 | . 103 . Move 476 | 43 111 322 Hop . | . . . Pick Up 5 | 3 2 . Fast Attach . | . . . Attach 5 | 3 2 . Detach . | . . . Swap . | . . . Drop . | . . . Fire 13 | . 1 12 Melee . | . . . Ram 1 | . . 1 Kick . | . . . Crush . | . . . Escape Stasis . | . . . Rewire . | . . . Trap . | . . . Miscellaneous . | . . . Route ------- -11/Scrapyard -10/Materials (discovered 2 exits: [*Mat] / *Sub) -10/Subcaves History --------- Turn | Location | Event 9 | -11/Scrapyard | Discovered new exit (range 14) 70 | -11/Scrapyard | Entered Materials 193 | -10/Materials | Discovered new exit (range 14) 318 | -10/Materials | Build established: Mutant 341 | -10/Materials | Discovered new exit (range 7) 355 | -10/Materials | Identified exit to Subcaves 357 | -10/Materials | Entered Subcaves 454 | -10/Subcaves | Ambushed by Subdweller buried in earth 622 | -10/Subcaves | A swath of the cavern ceiling suddenly collapsed 857 | -10/Subcaves | Core integrity fell below 50% 865 | -10/Subcaves | Core integrity fell below 20% 872 | -10/Subcaves | Destroyed by NJ-FDX(R) with Subdweller Laser Last Messages --------------- G-34 Mercenary destroyed. G-47 Trooper destroyed. The unstable cave ceiling collapses. A swath of the cavern ceiling suddenly collapses. Subatomizers dissect the Lgt. Ion Engine. Subatomizers dissect the Lgt. Ion Engine, destroying it. Acquired 6 matter. LT-XTH(R) destroyed. Subatomizers dissect the Sub. Machine Gun. Acquired 21 matter. Triggered Piercing Trap. Spikes shoot up from the floor. Critical hit (Impale). Subatomizers dissect the Sub. Machine Gun. Lgt. Ion Engine destroyed. Grenade Launcher destroyed. Lgt. Treads destroyed. Slammed into ID-012(R). Map ----- +----------------------------------------------------+ | ?????????????????????????????????????????????????? | | ?????????????????????????????????????????????????? | | ?????????????????????????????????????????????????? | | ?????????????????????????????????????????????????? | | ?????????????????????????????????????????????????? | | ?????????????????????????????????????????????????? | | ?????????????????????????????????????????????????? | | ?????????????????????????????????????????????????? | | ?????????????????????????????????????????????????? | | ?????????????????????????????????????????????????? | | ???????????????????????#?????????????????????????? | | ??????????????????????# ?????????????????????????? | | ??????????????????? ### ?????????????????????????? | | ??????????????????? ?????????? ??????????????? | | ???????????????????? ?????? ????????????? | | ???????????????????? ????? ????????????? | | ??????????????????? ????? ???????????? | | ??????????###?????# ????? ???????????? | | ??????????#""?????? ????? #????????????? | | ??????????# ??????? ????# #?????????????? | | ??????????# ???????? #### #?????????????? | | ?????????## #????????? ###??## ?????? | | ?????????# #?????????? ?## #?????? | | ?????????#""#??????????? #??? #?????? | | ?????????# ##??????????# #????? ##????? | | ?????????# ##???????###@ #????? #????? | | ?????????## ###?##### ##????? ##???? | | ??????????# ###" RR ######?? #???? | | ?????????## # ### ## ### ##? #???? | | ?????????# R #### # ## #????? | | ?????????## #??# R #?????? | | ??????????## # #??# #?????? | | ???????????###### ## # " ##?????? | | ????????????????#### ### # #####??????? | | ???????????????????## #?# #??????????? | | ????????????????????####?## ## # ###????????? | | ??????????????????????????######### #????????? | | ?????????????????????????????????# #????????? | | ?????????????????????????????????# #????????? | | #???????????????????????????????## #????????? | | #????????????????????????????????# #????????? | | ????????????????????????????????# #????????? | | ##???????????????????????????????# #????????? | | #??????????????????????????????## ##????????? | | #??????????????????????????????# ##?????????? | | #??????????????????????????????# ##??????????? | | #??????????????????????????????# ##??????????? | | ##?????????????????????????????# #??????????? | | #?????????????????????????????# #??????????? | | ##????????????????????????????## #??????????? | +----------------------------------------------------+ Best States ------------- Heat Dissipation 25 Energy Generation 10 Energy Capacity 125 Matter Stores 122 Matter Capacity 300 Sight Range 16 Terrain Scan Density 10 Evasion (%) 50 Recoil Reduction 2 Item Schematics ----------------- None Robot Schematics ------------------ None Fabricated ------------ Nothing Repaired ---------- Nothing Alien Tech Used ----------------- None Achievements -------------- None Challenges ------------ None Game ------ Seed ImpulseGhostTube Manual? 0 Play Time 00:05:07 Cumulative 43.1 hours Start 2025.07.08 @ 10:28:39 End 2025.07.08 @ 10:31:44 Sessions 1 Manual Loads 0 Difficulty Rogue Special Mode None Game No. 202 Rogue 202 Adventurer 0 Explorer 0 Win Type - Total 0 Types 0/0/0/0/0/0/0/0/0/0 Lore% 32 Gallery% 25 Achievement% 22 Wizard Run 0 Options --------- Layout 2 ASCII 0 Keyboard 0 Movement Mouse Keybinds 0 Fullscreen 1 Font 24/Smallcaps Map View 50x44 Zoom Use 0% Tactical HUD 0 Map Filters NONE Filters NONE Steam 1 RUN: 7c6c822a-58c7-44b7-b8a8-2543900b05b2